Cogmind - Beta 17.1 @@@ ROGUE MODE // 2026.09.11 @ 20:33:26 Player: Sunvar Result: Destroyed by 1C-UTU with 1C-UTU's Sword "Choppy" Performance ------------- Evolutions (1) 500 Regions Visited (6) 1200 Robots Destroyed (71) 355 Value Destroyed (1428) 1428 Prototype IDs (27) 540 Alien Tech Used (0) 0 Bonus (411) 411 TOTAL SCORE: 4434 Bonus ------- Follower Combat Kills 122 Aligned with FarCom 300 Friendly Fire -11 Cogmind --------- Core Integrity 0/400 Matter 202/300 Energy 26/100 System Corruption 3% Temperature Warm (171) Movement Core (100) Ox1 Location -8/Mines Parts ------- > --- POWER (1) -------- (None) > --- PROPULSION (3) --- (None) > --- UTILITY (3) ------ (None) > --- WEAPON (2) ------- Advanced Beam Cannon > --- INVENTORY (5) ---- Light Armor Plating Hardened Light Armor Plating Improved Trap Extractor (3/6 Heavy EX) Field Lobotomy Kit (5) Peak State ------------ > --- POWER ------------ Improved Ion Engine > --- PROPULSION ------- Armored Treads Armored Treads Armored Treads > --- UTILITY ---------- Improved Heat Sink Huge Storage Unit Seismic Detector > --- WEAPON ----------- Advanced Beam Cannon Gauss Rifle > --- INVENTORY -------- Improved Ion Engine Light Nuclear Core Light Treads Armored Treads Medium Treads Improved Flight Unit Improved Flight Unit Improved Flight Unit Improved Flight Unit Advanced Visual Processing Unit Light Armor Plating Medium Armor Plating Hardened Light Armor Plating Hacking Suite Improved Trap Extractor Advanced Beam Cannon Advanced Beam Cannon Advanced Beam Cannon Grenade Launcher Rocket Launcher Mini Grenade Launcher Field Lobotomy Kit Chainsword [Rating: 29] Favorites ----------- Power Improved Ion Engine Engine Improved Ion Engine Propulsion Armored Treads Treads Armored Treads Leg Aluminum Leg Flight Unit Improved Flight Unit Utility Seismic Detector Device Seismic Detector Storage Large Storage Unit Protection Light Armor Plating Weapon Advanced Beam Cannon Energy Cannon Advanced Beam Cannon Ballistic Gun Light Assault Rifle Launcher Grenade Launcher Impact Weapon Heavy Hammer Build | -11 -10 -10 -9 -9 -9 -8 ------- Run | Yrd Mat Min Mat Min Exi Min Slots Evolved 2 | . . . 2 . . . Power . | . . . . . . . Propulsion 1 | . . . 1 . . . Utility 1 | . . . 1 . . . Weapon . | . . . . . . . Parts Attached 45 | 2 9 6 22 2 1 3 Power 5 | . 2 1 2 . . . Engine 5 | . 2 1 2 . . . Core . | . . . . . . . Reactor . | . . . . . . . Propulsion 16 | . 4 1 11 . . . Treads 13 | . 2 1 10 . . . Leg 2 | . 2 . . . . . Wheel . | . . . . . . . Hover . | . . . . . . . Flight 1 | . . . 1 . . . Utility 11 | 1 2 1 6 1 . . Device 6 | 1 . 1 3 1 . . Storage 3 | . 2 . 1 . . . Processor . | . . . . . . . Hackware . | . . . . . . . Protection 2 | . . . 2 . . . Artifact . | . . . . . . . Weapon 13 | 1 1 3 3 1 1 3 Energy Gun . | . . . . . . . Energy Cannon 4 | . . . 2 . . 2 Ballistic Gun 6 | 1 1 2 1 . . 1 Ballistic Cannon . | . . . . . . . Launcher 2 | . . 1 . . 1 . Special Weapon . | . . . . . . . Impact Weapon 1 | . . . . 1 . . Slashing Weapon . | . . . . . . . Piercing Weapon . | . . . . . . . Special Melee Weapon . | . . . . . . . Unidentified Prototypes 4 | . . . 4 . . . Corrupted Parts 1 | . . . 1 . . . System Corruption 2 | . . . 2 . . . Parts Lost 9 | . 3 1 2 . . 3 Power 2 | . 1 . . . . 1 Propulsion 3 | . 1 1 . . . 1 Utility 3 | . . . 2 . . 1 Weapon 1 | . 1 . . . . . Highest Loss Streak 2 | . 1 1 1 . . 2 To Critical Strikes . | . . . . . . . Average Backups 17 | 6 10 13 18 24 24 15 Power 1 | 1 . 1 1 2 2 1 Propulsion 4 | 4 3 2 5 7 7 4 Utility 3 | . . 1 4 6 6 4 Weapon 7 | 1 4 7 7 9 9 4 Tool/Special . | . . . . . . . Unused Backups 43 | . 8 1 12 3 1 18 Power 3 | . 1 . . . . 2 Propulsion 12 | . 4 . 1 1 . 6 Utility 7 | . 1 . 1 . . 5 Weapon 20 | . 2 1 10 2 1 4 Tool/Special 1 | . . . . . . 1 Average Slot Usage (%) 96 | . 95 100 99 100 79 65 Engine 11 | . 11 14 10 11 11 5 Treads 27 | . 10 28 32 33 33 28 Leg 3 | . 15 . . . . . Device 17 | . 14 14 17 22 22 11 Storage 12 | . 14 14 11 11 11 5 Protection 1 | . . . 4 . . . Energy Cannon 10 | . . . 16 20 . 8 Ballistic Gun 12 | . 27 27 5 . . 5 Peak Build Rating 29 | 7 8 11 28 28 25 29 Average Rating 17 | 6 7 8 22 27 22 20 On Entrance 15 | 6 7 8 9 28 28 25 Avg Prop Armor Cover (%) 45 | . . . . . . 45 Naked Turns . | . . . . . . . Heaviest Build 97 | 15 30 30 97 97 93 97 Greatest Support 60 | 20 40 40 60 60 60 60 Greatest Overweight (x) 2 | . 2 . 1 1 1 1 Average Overweight (x) . | . . . . 1 1 . Largest Inventory Capacity 25 | 8 15 15 25 25 25 25 Average Capacity 18 | 8 12 15 18 25 25 14 Most Carried 25 | 6 15 15 25 25 25 24 Average Carried 17 | 6 10 13 18 24 24 13 Final Capacity 25 | 8 15 15 25 25 25 5 Final Carried 25 | 6 15 14 25 25 24 4 Class Distribution -------------------- 74% | Mutant 25% | Scavenger-Mutant Dominant Class ---------------- Mutant | -10/Materials Mutant | -10/Mines Mutant | -9/Materials Mutant | -9/Mines Mutant | -9/Exiles Mutant | -8/Mines Resources | -11 -10 -10 -9 -9 -9 -8 ----------- Run | Yrd Mat Min Mat Min Exi Min Matter Collected 1527 | 242 549 155 470 85 . 26 Remotely . | . . . . . . . Salvage Created 2481 | 76 840 118 1436 11 . . Parts 142 | 5 50 7 78 2 . . Haulers Intercepted 8 | . 2 . 6 . . . Recyclers Shooed 3 | . 2 . 1 . . . Parts Field Recycled . | . . . . . . . Retrieved Matter . | . . . . . . . Parts Self-Destructed . | . . . . . . . Prevented . | . . . . . . . Parts Restored . | . . . . . . . Kills | -11 -10 -10 -9 -9 -9 -8 ------- Run | Yrd Mat Min Mat Min Exi Min Combat Hostiles Destroyed 37 | . 12 4 20 1 . . Guns 18 | . 12 2 4 . . . Cannons 17 | . . . 16 1 . . AOE 2 | . . 2 . . . . Classes Destroyed 12 | 2 6 . 4 . . . Worker 6 | . 1 . 5 . . . Builder 1 | . . . 1 . . . Tunneler 5 | 1 1 1 2 . . . Hauler 8 | . 2 . 6 . . . Recycler 4 | 1 2 . 1 . . . Operator 3 | . 1 . 2 . . . Watcher 7 | . 2 . 5 . . . Swarmer 10 | . 1 2 6 1 . . Grunt 18 | . 11 2 5 . . . Brawler 1 | . . . 1 . . . Duelist 1 | . . . 1 . . . Sentry 7 | . . . 7 . . . Best Kill Streak 4 | 2 4 2 4 1 . . Combat Bots Only 4 | . 3 2 4 1 . . Max Kills in Single Turn 2 | 1 1 2 2 1 . . Gunslinging . | . . . . . . . Exploded 2 | . . 2 . . . . Melee . | . . . . . . . Uniques/NPCs Destroyed . | . . . . . . . Combat | -11 -10 -10 -9 -9 -9 -8 -------- Run | Yrd Mat Min Mat Min Exi Min Hostile Shots Fired 219 | . 79 35 76 2 . 27 Missed 57 | . 19 10 25 1 . 2 Hits 162 | . 60 25 51 1 . 25 Melee 30 | . . . 5 . . 25 Projectile 132 | . 60 25 46 1 . . Critical Strikes 14 | . 1 . 3 . . 10 Damage Taken 3151 | . 709 336 717 9 . 1380 Core 624 | . 178 22 81 . . 343 Absorbed by Shields . | . . . . . . . Regen/Repaired (Parts) 64 | . . . 64 . . . Core Remaining (%) 60 | 100 . 20 . . . . Volleys Fired 208 | 6 76 21 94 2 3 6 Largest 2 | 2 2 2 2 2 1 2 Hottest 136 | 40 40 40 136 136 33 136 Shots Fired 410 | 12 152 41 187 5 3 10 Gun 264 | 12 152 40 59 . . 1 Cannon 142 | . . . 128 5 . 9 Launcher 4 | . . 1 . . 3 . Special . | . . . . . . . Kinetic 264 | 12 152 40 59 . . 1 Thermal 142 | . . . 128 5 . 9 Explosive 4 | . . 1 . . 3 . Electromagnetic . | . . . . . . . Robot Hit Streak 14 | 3 14 13 13 1 . 2 Robot Miss Streak 4 | 1 4 2 4 2 . 3 Penetration Max . | . . . . . . . Secondary Targets 1 | . 1 . . . . . Max Gunslinging Chain 1 | . 1 . . . . . Shots Hit Robots 253 | 8 104 31 105 1 . 4 Core Hits 103 | 3 38 10 51 1 . . Critical Kills 1 | . 1 . . . . . Critical Parts Destroyed 2 | . 1 . 1 . . . Critical Strikes 3 | . 2 . 1 . . . Destroy 3 | . 2 . 1 . . . Melee Attacks 1 | . . . . 1 . . Impact 1 | . . . . 1 . . Slashing . | . . . . . . . Piercing . | . . . . . . . Sneak Attacks . | . . . . . . . Combat Hostiles . | . . . . . . . Follow-up Attacks . | . . . . . . . Damage Inflicted 3949 | 96 1330 421 2004 21 . 77 Guns 2266 | 96 1319 332 503 . . 16 Cannons 1530 | . . . 1448 21 . 61 Explosions 89 | . . 89 . . . . Melee . | . . . . . . . Ramming 64 | . 11 . 53 . . . Kinetic 2266 | 96 1319 332 503 . . 16 Thermal 1530 | . . . 1448 21 . 61 Explosive 89 | . . 89 . . . . Electromagnetic . | . . . . . . . Impact . | . . . . . . . Slashing . | . . . . . . . Piercing . | . . . . . . . Highest Corruption 3 | . 1 1 3 3 3 3 Average Corruption 1 | . 1 1 2 3 3 3 Corruption Purged . | . . . . . . . Corruption Blocked . | . . . . . . . Effects 83 | . 6 11 27 25 14 . Message Errors 23 | . 3 3 9 5 3 . Matter Fused 25 | . 3 3 6 8 5 . Heat Flow Errors 6 | . . 1 1 4 . . Energy Discharges 7 | . . 4 2 . 1 . Parts Fused 1 | . . . . 1 . . Data Loss (minor) 15 | . . . 6 6 3 . Data Loss (major) 2 | . . . . . 2 . Misfires 1 | . . . . 1 . . Alerts 2 | . . . 2 . . . Weapon Failures 1 | . . . 1 . . . Overload Shots . | . . . . . . . Overflow Damage 20 | . . . 20 . . . Projectiles 20 | . . . 20 . . . Explosions . | . . . . . . . Melee . | . . . . . . . Knockbacks . | . . . . . . . Impact . | . . . . . . . Kinetic . | . . . . . . . Secondary . | . . . . . . . Self-Inflicted Damage . | . . . . . . . Shots . | . . . . . . . Rammed 10 | . 1 1 7 1 . . Targets Rammed 11 | . 1 1 8 1 . . Kicked . | . . . . . . . Crushed 1 | . . . 1 . . . Highest Temperature 242 | . 20 242 180 212 . 171 Average Temperature 53 | . 5 50 52 78 . 97 Received Heat Transfer 756 | . 399 168 189 . . . Siege Activations . | . . . . . . . Martial Activations . | . . . . . . . Shielding Activations . | . . . . . . . Robots Disrupted . | . . . . . . . Combat Hostiles . | . . . . . . . Robots Corrupted . | . . . . . . . Combat Hostiles . | . . . . . . . Parts Fried . | . . . . . . . Impact Corruptions . | . . . . . . . Robots Melted . | . . . . . . . Combat Hostiles . | . . . . . . . Parts Melted 4 | . . . 3 1 . . Heat Transferred 2691 | . . . 2627 37 . 27 Parts Sabotaged . | . . . . . . . Parts Stolen . | . . . . . . . Parts Stripped . | . . . . . . . Power Chain Reactions . | . . . . . . . Alert | -11 -10 -10 -9 -9 -9 -8 ------- Run | Yrd Mat Min Mat Min Exi Min Maximum Alert Level 1 | . . . 1 . . . Low Security (%) 89 | 100 100 100 74 100 . 100 Level 1 10 | . . . 25 . . . Level 2 . | . . . . . . . Level 3 . | . . . . . . . Level 4 . | . . . . . . . Level 5 . | . . . . . . . High Security . | . . . . . . . Max Security . | . . . . . . . Peak Influence 278 | 10 70 76 278 100 . . Initial 100 | . . . . 100 . . Average 72 | 1 21 7 152 10 . . Influence Increases 1423 | 10 380 141 856 36 . . Destroy 0b10 Robot/C 860 | . 240 100 500 20 . . Destroy 0b10 Robot/NC 175 | 10 45 5 115 . . . Destroy Leader 230 | . 48 20 162 . . . Allied During Kill 23 | . . 8 15 . . . Successful Hack 2 | . . . 2 . . . Disable Machine 30 | . . . 30 . . . Destroy Structure 13 | . 2 8 2 1 . . Lose Combat Pursuer 90 | . 45 . 30 15 . . Influence Decreases 1423 | 10 380 141 597 295 . . Entered New Map 159 | . . . . 159 . . Time Decay 1188 | 10 354 131 557 136 . . Lost Part 56 | . 26 10 20 . . . Lost Ally 20 | . . . 20 . . . Squads Dispatched 5 | . 2 . 2 1 . . Investigation 3 | . 1 . 1 1 . . Extermination . | . . . . . . . Reinforcement 2 | . 1 . 1 . . . Assault . | . . . . . . . Garrison . | . . . . . . . Intercept . | . . . . . . . Searches Triggered . | . . . . . . . Construction Impeded . | . . . . . . . Haulers Reinforced . | . . . . . . . Active Scanning Responses . | . . . . . . . Cargo Convoy Interrupts . | . . . . . . . Stealth | -11 -10 -10 -9 -9 -9 -8 --------- Run | Yrd Mat Min Mat Min Exi Min Distress Signals 3 | . 1 . 2 . . . Communications Jammed . | . . . . . . . Distress Signals . | . . . . . . . Times Spotted 76 | . 21 5 47 2 . 1 Peak Tracking Total 9 | . 4 3 5 . 9 1 Tactical Retreats 5 | . 2 . 2 1 . . Traps | -11 -10 -10 -9 -9 -9 -8 ------- Run | Yrd Mat Min Mat Min Exi Min Traps Triggered 5 | . 2 . 3 . . . Indirectly . | . . . . . . . Trap Hack Attempts . | . . . . . . . Triggered . | . . . . . . . Disarmed . | . . . . . . . Reprogrammed . | . . . . . . . Reused . | . . . . . . . Traps Extracted . | . . . . . . . Installed . | . . . . . . . Triggered . | . . . . . . . Most Traps Carried 3 | . . 3 3 3 3 3 Machines | -11 -10 -10 -9 -9 -9 -8 ---------- Run | Yrd Mat Min Mat Min Exi Min Machines Disabled 5 | . . . 2 . 3 . Max in Single Turn 2 | . . . 1 . 2 . Machines Repaired . | . . . . . . . Machines Dismantled . | . . . . . . . Machines Sabotaged . | . . . . . . . Overloaded Fab Kills . | . . . . . . . Hacking | -11 -10 -10 -9 -9 -9 -8 --------- Run | Yrd Mat Min Mat Min Exi Min Machines Accessed 8 | . . 1 4 1 2 . Terminals 2 | . . . 2 . . . Fabricators . | . . . . . . . Repair Stations 1 | . . . 1 . . . Recycling Units . | . . . . . . . Scanalyzers 1 | . . . 1 . . . Garrison Access . | . . . . . . . Total Hacks 13 | . . 1 9 1 2 . Successful 9 | . . 1 5 1 2 . Failed 4 | . . . 4 . . . Catastrophic 1 | . . . 1 . . . Database Lockouts . | . . . . . . . Manual 5 | . . . 4 . 1 . Terminals 4 | . . . 4 . . . Fabricators . | . . . . . . . Repair Stations 2 | . . . 2 . . . Recycling Units . | . . . . . . . Scanalyzers 3 | . . . 3 . . . Garrison Access . | . . . . . . . Terminal Hacks 5 | . . 1 1 1 2 . Record 1 | . . . . . 1 . Open Door 2 | . . 1 . 1 . . Hauler Manifests 1 | . . . 1 . . . Proto ID Catalog 1 | . . . . . 1 . Fabricator Hacks . | . . . . . . . Repair Station Hacks 2 | . . . 2 . . . Scan Component 1 | . . . 1 . . . Repair 1 | . . . 1 . . . Recycling Unit Hacks . | . . . . . . . Scanalyzer 2 | . . . 2 . . . Retrieve Study 2 | . . . 2 . . . Garrison Access Hacks . | . . . . . . . Unauthorized Hacks . | . . . . . . . Terminals . | . . . . . . . Fabricators . | . . . . . . . Repair Stations . | . . . . . . . Recycling Units . | . . . . . . . Scanalyzers . | . . . . . . . Garrison Access . | . . . . . . . Data Cores Recovered 1 | . . . 1 . . . Used . | . . . . . . . Hacking Detections 3 | . . . 3 . . . Full Trace Events 1 | . . . 1 . . . Feedback Events . | . . . . . . . Feedback Blocked . | . . . . . . . Robot Schematics Acquired . | . . . . . . . Robots Built . | . . . . . . . Authchips . | . . . . . . . Time . | . . . . . . . Total Robot Build Rating . | . . . . . . . Part Schematics Acquired . | . . . . . . . Parts Built . | . . . . . . . Authchips . | . . . . . . . Time . | . . . . . . . Total Part Build Rating . | . . . . . . . Part Studies Acquired 1 | . . . 1 . . . Parts Repaired 1 | . . . 1 . . . Time 32 | . . . 32 . . . Parts Recycled . | . . . . . . . Recycled Matter . | . . . . . . . Retrieved Matter . | . . . . . . . Retrieved Components . | . . . . . . . Parts Scanalyzed . | . . . . . . . Part Schematics Acquired . | . . . . . . . Parts Damaged . | . . . . . . . Bothacking | -11 -10 -10 -9 -9 -9 -8 ------------ Run | Yrd Mat Min Mat Min Exi Min Used RIF Installer . | . . . . . . . Robots Hacked . | . . . . . . . Non-combat . | . . . . . . . Combat . | . . . . . . . Robot Hacks Applied . | . . . . . . . Relay Couplers Released . | . . . . . . . Fabnet Peak Effective % . | . . . . . . . Robots Rewired . | . . . . . . . Allies Hacked . | . . . . . . . Hacks Repelled . | . . . . . . . Allies | -11 -10 -10 -9 -9 -9 -8 -------- Run | Yrd Mat Min Mat Min Exi Min Total Allies 2 | . . 2 . . . . Largest Group 2 | . . 2 2 . . . Highest-Rated Group 45 | . . 45 45 . . . Highest-Rated Ally 31 | . . 31 31 . . . Total Orders . | . . . . . . . Ally Attacks 29 | . . 5 24 . . . Total Damage 317 | . . 62 255 . . . Kills 7 | . . 1 6 . . . Allies Corrupted . | . . . . . . . Allies Melted . | . . . . . . . Intel | -11 -10 -10 -9 -9 -9 -8 ------- Run | Yrd Mat Min Mat Min Exi Min Active Infowar (turns) 6923 | 12 1433 1226 2452 1225 540 35 Seismic 6923 | 12 1433 1226 2452 1225 540 35 Robot Analysis Total . | . . . . . . . Derelict Logs Recovered 5 | . . 3 . 2 . . Drone Launches . | . . . . . . . Drone Recoveries . | . . . . . . . Exploration | -11 -10 -10 -9 -9 -9 -8 ------------- Run | Yrd Mat Min Mat Min Exi Min Turns Passed 7499 | 40 1433 1237 2954 1225 540 70 Spaces Moved 3463 | 16 767 724 1317 380 213 46 Core 39 | . . . . . . 39 Treads 2950 | . 309 724 1317 380 213 7 Legs 474 | 16 458 . . . . . Wheels . | . . . . . . . Hover . | . . . . . . . Flight . | . . . . . . . Fastest Speed 50 | 120 120 160 160 250 250 50 Average Speed 182 | 120 147 160 188 250 250 80 Slowest Speed 260 | 120 260 160 250 250 250 250 Overloaded Moves . | . . . . . . . Propulsion Burnouts . | . . . . . . . Robots Hopped . | . . . . . . . Potential Cave-ins . | . . . . . . . Cave-ins Triggered . | . . . . . . . Exploration Rate (%) 61 | 3 95 95 91 81 59 6 Regions Visited 6 Branch Regions 4 Pre-discovered Areas 1 | . . . . . 1 . Known Exits Taken 1 | . . . 1 . . . Unknown Exits Taken 5 | 1 1 1 . 1 1 . Scrap Searched 2 | . . 1 . 1 . . Spaces Dug 1 | . . . . 1 . . Terrain Destroyed 32 | . . 8 . 1 23 . Melee 1 | . . . . 1 . . Projectile . | . . . . . . . AOE 31 | . . 8 . . 23 . Terrain Rammed . | . . . . . . . Walls Destroyed . | . . . . . . . Machines Disabled . | . . . . . . . Actions | -11 -10 -10 -9 -9 -9 -8 --------- Run | Yrd Mat Min Mat Min Exi Min Total 4261 | 23 918 765 1613 652 220 70 Wait 408 | . 41 4 98 256 . 9 Move 3457 | 15 766 723 1316 379 212 46 Hop . | . . . . . . . Pick Up 56 | . 15 4 32 4 1 . Fast Attach 20 | 1 2 . 15 . . 2 Attach 8 | . 2 1 2 . 1 2 Detach 3 | . 1 . 1 . 1 . Swap 28 | 1 5 7 10 4 . 1 Drop 61 | . 9 4 37 5 2 4 Fire 208 | 6 76 21 94 2 3 6 Melee 1 | . . . . 1 . . Ram . | . . . . . . . Kick . | . . . . . . . Crush 11 | . 1 1 8 1 . . Escape Stasis . | . . . . . . . Rewire . | . . . . . . . Trap . | . . . . . . . Miscellaneous . | . . . . . . . Route ------- -11/Scrapyard -10/Materials (discovered 6 exits: *Mat x3 / *Min x2 / [*Sub]) -10/Mines (discovered 2 exits: *Mat / [*Sub]) -9/Materials (discovered 5 exits: *Mat x3 / *Min x2) -9/Mines (discovered 4 exits: *Mat x2 / *Exi / [*Zio]) -9/Exiles -8/Mines History --------- Turn | Location | Event 21 | -11/Scrapyard | Discovered new exit (range 3) 41 | -11/Scrapyard | Entered Materials 139 | -10/Materials | Discovered new exit (range 7) 192 | -10/Materials | Discovered new exit (range 10) 255 | -10/Materials | Discovered new exit (range 9) 309 | -10/Materials | Build established: Mutant 490 | -10/Materials | Discovered new exit (range 9) 717 | -10/Materials | Core integrity fell below 50% 1057 | -10/Materials | Discovered new exit (range 8) 1164 | -10/Materials | Discovered new exit (range 14) 1366 | -10/Materials | Build established: Scavenger-Mutant 1474 | -10/Materials | Entered Mines 1527 | -10/Mines | Learned 4 Materials zone layouts 1607 | -10/Mines | Found a hidden stash of uninstalled traps 1642 | -10/Mines | Discovered new exit (range 5) 1838 | -10/Mines | Met a Derelict who couldn't figure out how to use a Trap Extractor 1950 | -10/Mines | Learned 2 Materials zone layouts 2142 | -10/Mines | Build established: Mutant 2273 | -10/Mines | Learned 2 Materials zone layouts 2309 | -10/Mines | A weapon hastily lodged in a ceiling crevice suddenly fell to the ground 2616 | -10/Mines | Discovered new exit (range 6) 2711 | -10/Mines | Entered Materials 2711 | -9/Materials | Accompanied by 2 allies 2711 | -9/Materials | Evolved 2 slots: Propulsion x1, Utility x1 2712 | -9/Materials | Identified exit to Materials 2712 | -9/Materials | Identified exit to Mines 2716 | -9/Materials | Led the pair of lost Derelicts to an unsafe place 3011 | -9/Materials | Build established: Scavenger-Mutant 3287 | -9/Materials | Discovered exit to Mines (range 13) 4332 | -9/Materials | Build established: Mutant 4466 | -9/Materials | Discovered exit to Materials (range 3) 4656 | -9/Materials | Repaired Imp. Ion Engine 5665 | -9/Materials | Entered Mines 5666 | -9/Mines | Assembled infested the area 5995 | -9/Mines | Learned Materials interactive machine intel 6017 | -9/Mines | Received a Rocket Launcher from a helpful Derelict 6020 | -9/Mines | Discovered exit to Materials (range 5) 6111 | -9/Mines | Discovered exit to Materials (range 15) 6249 | -9/Mines | Learned location of 1 exit from Proximity Caves 6255 | -9/Mines | Met a Derelict shopkeep closing up shop 6417 | -9/Mines | A Derelict revealed a hidden shortcut to a safe place 6880 | -9/Mines | Deemed a non-threat by the Exiles lab entrance 6880 | -9/Mines | Discovered new exit (range 5) 6890 | -9/Mines | Entered Exiles 6951 | -9/Exiles | Met 8R-AWN 6994 | -9/Exiles | Met EX-HEX 7079 | -9/Exiles | Met EX-BIN 7114 | -9/Exiles | Aligned with FarCom system 7116 | -9/Exiles | Given EX-Vault access code 7174 | -9/Exiles | Opened EX-Vault 7192 | -9/Exiles | Found Field Lobotomy Kit 7238 | -9/Exiles | Warned to stay clear of 0b10 Research branches 7310 | -9/Exiles | Met EX-DEC 7323 | -9/Exiles | Learned location of Zion (-7) 7391 | -9/Exiles | Attacked by the Exiles 7410 | -9/Exiles | Discovered new exit (range 10) 7430 | -9/Exiles | Left Exiles lab with Field Lobotomy Kit 7430 | -9/Exiles | Entered Mines 7459 | -8/Mines | 1C-UTU came to Exiles' defense 7494 | -8/Mines | Core integrity fell below 50% 7500 | -8/Mines | Core integrity fell below 20% 7500 | -8/Mines | Destroyed by 1C-UTU with 1C-UTU's Sword "Choppy" Last Messages --------------- 07460_ 1C-UTU follow-up attacks with Prototype Slashing Weapon. 07461_ Imp. Ion Engine destroyed. 07463_ 1C-UTU follow-up attacks with Prototype Slashing Weapon. 07463_ Imp. Heat Sink destroyed. 07464_ Dropped Huge Storage Unit. 07465_ Dropped Seismic Detector. 07465_ Dropped Adv. Beam Cannon. 07465_ 1C-UTU follow-up attacks with Prototype Slashing Weapon. 07466_ Dropped Gauss Rifle. 07480_ K-01 Serf collects debris. 07481_ Acquired 26 matter. 07486_ Acquired Adv. Beam Cannon. 07494_ 1C-UTU follow-up attacks with Prototype Slashing Weapon. 07495_ Adv. Beam Cannon severed. 07496_ 1C-UTU follow-up attacks with Prototype Slashing Weapon. 07496_ Arm. Treads severed. 07497_ 1C-UTU follow-up attacks with Prototype Slashing Weapon. 07498_ Arm. Treads severed. 07499_ 1C-UTU follow-up attacks with Prototype Slashing Weapon. 07499_ Arm. Treads destroyed. Map ----- +----------------------------------------------------+ | | | | | | | | | | | | | | | | | | | | | | | | | | | ????????????????????????????? | | ????????????????????????????? | | ????????????????????????????? | | ????????????????????????????? | | ????????????????????????????? | | ????????????????????????????? | | ????????????????????????????? | | ?????????????????##########?? | | ?????????????????# #?? | | ?????????????????# #?? | | ?????????????????# #?? | | ?????????????????# [==#?? | | ?????????????????# ]*l@#?? | | ?????????????????# /]!]=#?? | | ?????????????????### ##=*##?? | | ????????#??????????#=##!=#??? | | ????????# ###### ##!]#??? | | ????? *!==]#??? | | ???????# ==!#??? | | ????????# ###########??? | | ????????# ????????????????? | | ????????????????????????????? | | ????????????????????????????? | | ????????????????????????????? | | ????????????????????????????? | | ????????????????????????????? | | ????????????????????????????? | | ????????????????????????????? | | ????????????????????????????? | | ????????????????????????????? | | ????????????????????????????? | | ????????????????????????????? | | ????????????????????????????? | | ????????????????????????????? | | ????????????????????????????? | | ????????????????????????????? | | ????????????????????????????? | +----------------------------------------------------+ Best States ------------- Heat Dissipation 42 Energy Generation 14 Energy Capacity 280 Matter Stores 300 Matter Capacity 300 Sight Range 16 Terrain Scan Density 10 Armor Coverage 300 Evasion (%) 55 Recoil Reduction 3 Trap Extractor Capacity 6 Item Schematics ----------------- None Robot Schematics ------------------ None Fabricated ------------ Nothing Repaired ---------- Imp. Ion Engine | 8% | -9/Materials Studied --------- Grenade Launcher | -9/Materials | Hacked Alien Tech Used ----------------- None Achievements -------------- None Challenges ------------ None Game ------ Seed WarlordCarbideStripper Manual? 0 Play Time 00:41:07 Cumulative 258.6 hours Start 2026.09.11 @ 06:14:17 End 2026.09.11 @ 20:33:26 Sessions 3 Manual Loads 0 Difficulty Rogue Special Mode None Game No. 165 Rogue 165 Adventurer 0 Explorer 0 Win Type - Total 24 Types 11/0/4/9/0/0/0/0/0/0 Lore% 72 Gallery% 61 Achievement% 47 Wizard Run 0 Options --------- Layout 0 ASCII 0 Keyboard 1 Movement Numpad Keybinds 0 Fullscreen 1 Font 36/Proggy Map View 76x50 Zoom Use 0% Tactical HUD 1 Map Filters NONE Filters NONE Steam 1 RUN: 003dbf08-4085-495a-ac86-20a56bfdf43a